[Event "*** Titled Tuesday Blitz"]
[Site "Chess.com"]
[Date "2020.05.26"]
[Round "6"]
[White "farzadbfd"]
[Black "Tacticusbd"]
[Result "0-1"]
[WhiteElo "2710"]
[BlackElo "2433"]
[TimeControl "180+1"]
[EndTime "11:09:14 PDT"]
[Termination "Tacticusbd won on time"]

1. e4 {[%clk 0:02:57.5]} 1... e5 {[%clk 0:02:53]} 2. Nf3 {[%clk 0:02:57.2]} 2...
Nc6 {[%clk 0:02:32.6]} 3. Bc4 {[%clk 0:02:56.5]} 3... Bc5 {[%clk 0:02:30]} 4.
O-O {[%clk 0:02:55.2]} 4... Nf6 {[%clk 0:02:28.6]} 5. Re1 {[%clk 0:02:55]} 5...
d6 {[%clk 0:02:23.3]} 6. d3 {[%clk 0:02:55.3]} 6... O-O {[%clk 0:02:21.9]} 7. c3
{[%clk 0:02:53.7]} 7... a6 {[%clk 0:02:19.6]} 8. Bb3 {[%clk 0:02:54.2]} 8... Be6
{[%clk 0:02:17.8]} 9. Nbd2 {[%clk 0:02:52.7]} 9... Ba7 {[%clk 0:02:15.7]} 10.
Nf1 {[%clk 0:02:52.5]} 10... h6 {[%clk 0:02:13.9]} 11. Be3 {[%clk 0:02:51.5]}
11... Ne7 {[%clk 0:02:01.4]} 12. Bxa7 {[%clk 0:02:50.6]} 12... Rxa7 {[%clk
0:02:00]} 13. d4 {[%clk 0:02:51.5]} 13... Ng6 {[%clk 0:01:57.3]} 14. Bxe6 {[%clk
0:02:45.7]} 14... fxe6 {[%clk 0:01:55.6]} 15. dxe5 {[%clk 0:02:46.2]} 15... dxe5
{[%clk 0:01:54.8]} 16. Qxd8 {[%clk 0:02:45.2]} 16... Rxd8 {[%clk 0:01:54.5]} 17.
N1d2 {[%clk 0:02:31.5]} 17... b5 {[%clk 0:01:49]} 18. Nb3 {[%clk 0:02:29.2]}
18... Kf7 {[%clk 0:01:44.8]} 19. Nc5 {[%clk 0:02:20.9]} 19... Rd6 {[%clk
0:01:43.5]} 20. a4 {[%clk 0:02:14.5]} 20... c6 {[%clk 0:01:17.3]} 21. Red1
{[%clk 0:01:52.4]} 21... Rxd1+ {[%clk 0:01:13.8]} 22. Rxd1 {[%clk 0:01:53.3]}
22... a5 {[%clk 0:01:04.9]} 23. h4 {[%clk 0:01:46.6]} 23... Ke7 {[%clk
0:01:01.1]} 24. h5 {[%clk 0:01:45.1]} 24... Nxh5 {[%clk 0:00:59.6]} 25. g3
{[%clk 0:01:38.7]} 25... Nf6 {[%clk 0:00:58.8]} 26. Kg2 {[%clk 0:01:38]} 26...
Nd7 {[%clk 0:00:56.7]} 27. Nxd7 {[%clk 0:01:23.7]} 27... Rxd7 {[%clk 0:00:55.3]}
28. Ra1 {[%clk 0:01:24.1]} 28... Rb7 {[%clk 0:00:48.4]} 29. axb5 {[%clk
0:01:03]} 29... Rxb5 {[%clk 0:00:47.4]} 30. Ra2 {[%clk 0:01:03.6]} 30... Kd6
{[%clk 0:00:45.4]} 31. Nd2 {[%clk 0:01:03.7]} 31... Kc5 {[%clk 0:00:45]} 32. Kf3
{[%clk 0:00:59.1]} 32... Nf8 {[%clk 0:00:43.4]} 33. Ke3 {[%clk 0:00:52.1]} 33...
Nd7 {[%clk 0:00:42.9]} 34. Kd3 {[%clk 0:00:52.5]} 34... Nb6 {[%clk 0:00:33.7]}
35. b4+ {[%clk 0:00:15.9]} 35... axb4 {[%clk 0:00:32.6]} 36. c4 {[%clk
0:00:16.5]} 36... b3 {[%clk 0:00:30.4]} 37. Ra3 {[%clk 0:00:16.5]} 37... Nxc4
{[%clk 0:00:24.7]} 38. Nxc4 {[%clk 0:00:16.3]} 38... b2 {[%clk 0:00:24.4]} 39.
Nxb2 {[%clk 0:00:11.7]} 39... Rxb2 {[%clk 0:00:24.1]} 40. Ra5+ {[%clk
0:00:12.1]} 40... Kd6 {[%clk 0:00:21.4]} 41. Ke3 {[%clk 0:00:12.5]} 41... Rb3+
{[%clk 0:00:20.8]} 42. Ke2 {[%clk 0:00:12.3]} 42... Rb7 {[%clk 0:00:19.9]} 43.
Ke3 {[%clk 0:00:12.7]} 43... h5 {[%clk 0:00:18.9]} 44. Ke2 {[%clk 0:00:12.4]}
44... g5 {[%clk 0:00:18.7]} 45. Ke3 {[%clk 0:00:12.5]} 45... h4 {[%clk
0:00:17.9]} 46. Kf3 {[%clk 0:00:12.6]} 46... Rf7+ {[%clk 0:00:15.7]} 47. Kg4
{[%clk 0:00:12.5]} 47... Rxf2 {[%clk 0:00:15.2]} 48. gxh4 {[%clk 0:00:13]} 48...
gxh4 {[%clk 0:00:14.4]} 49. Kxh4 {[%clk 0:00:13.9]} 49... Rf3 {[%clk 0:00:14.5]}
50. Kg5 {[%clk 0:00:13.2]} 50... Rf4 {[%clk 0:00:14.4]} 51. Ra8 {[%clk
0:00:11.2]} 51... Rxe4 {[%clk 0:00:13.5]} 52. Rd8+ {[%clk 0:00:11.8]} 52... Kc5
{[%clk 0:00:13.2]} 53. Kf6 {[%clk 0:00:11.3]} 53... Rd4 {[%clk 0:00:12.6]} 54.
Rb8 {[%clk 0:00:10.2]} 54... e4 {[%clk 0:00:12.3]} 55. Kxe6 {[%clk 0:00:06.7]}
55... e3 {[%clk 0:00:11.9]} 56. Kf5 {[%clk 0:00:07.6]} 56... e2 {[%clk
0:00:05.6]} 57. Re8 {[%clk 0:00:07.8]} 57... Rd2 {[%clk 0:00:05.2]} 58. Kf4
{[%clk 0:00:08.4]} 58... Kd4 {[%clk 0:00:04.9]} 59. Kf3 {[%clk 0:00:08.8]} 59...
Kd3 {[%clk 0:00:04.8]} 60. Kf2 {[%clk 0:00:09.4]} 60... Kc2 {[%clk 0:00:04.1]}
61. Re5 {[%clk 0:00:07.9]} 61... Kd1 {[%clk 0:00:02.9]} 0-1

[Event "*** Titled Tuesday Blitz"]
[Site "Chess.com"]
[Date "2020.05.26"]
[Round "6"]
[White "Antelacus"]
[Black "Swarajan"]
[Result "1/2-1/2"]
[WhiteElo "2245"]
[BlackElo "2051"]
[TimeControl "180+1"]
[EndTime "11:09:16 PDT"]
[Termination "Game drawn by repetition"]

1. d4 {[%clk 0:03:00.9]} 1... c5 {[%clk 0:03:00.2]} 2. d5 {[%clk 0:03:00.5]}
2... Nf6 {[%clk 0:03:00.5]} 3. c4 {[%clk 0:02:59.8]} 3... g6 {[%clk 0:03:00.7]}
4. Nc3 {[%clk 0:02:59.3]} 4... Bg7 {[%clk 0:03:01.2]} 5. e4 {[%clk 0:02:59.3]}
5... O-O {[%clk 0:03:01.6]} 6. e5 {[%clk 0:02:57.1]} 6... Ne8 {[%clk 0:03:01.6]}
7. Nf3 {[%clk 0:02:55.9]} 7... d6 {[%clk 0:03:01.7]} 8. exd6 {[%clk 0:02:50.5]}
8... Nxd6 {[%clk 0:03:00.7]} 9. Be2 {[%clk 0:02:47.2]} 9... Bg4 {[%clk
0:03:00.3]} 10. Qd3 {[%clk 0:02:37.3]} 10... Nd7 {[%clk 0:02:58.5]} 11. O-O
{[%clk 0:02:35.9]} 11... Bxf3 {[%clk 0:02:58.4]} 12. Qxf3 {[%clk 0:02:34.1]}
12... Ne5 {[%clk 0:02:57.2]} 13. Qf4 {[%clk 0:02:30.1]} 13... a6 {[%clk
0:02:51.2]} 14. a4 {[%clk 0:02:26.6]} 14... Rb8 {[%clk 0:02:39.9]} 15. Bd2
{[%clk 0:02:25.4]} 15... Qb6 {[%clk 0:02:37.1]} 16. Rab1 {[%clk 0:02:18.7]}
16... Qb3 {[%clk 0:02:36.2]} 17. Rfc1 {[%clk 0:02:11.5]} 17... Nexc4 {[%clk
0:02:27.9]} 18. Bxc4 {[%clk 0:02:09.9]} 18... Nxc4 {[%clk 0:02:26.2]} 19. Be3
{[%clk 0:01:59.7]} 19... Nxe3 {[%clk 0:02:16.7]} 20. Qxe3 {[%clk 0:01:58.9]}
20... Bxc3 {[%clk 0:02:11.9]} 21. Rxc3 {[%clk 0:01:55.7]} 21... Qxd5 {[%clk
0:02:11.7]} 22. Rxc5 {[%clk 0:01:54.5]} 22... Qd6 {[%clk 0:02:11.2]} 23. Rbc1
{[%clk 0:01:49.1]} 23... Rfd8 {[%clk 0:02:10.7]} 24. g3 {[%clk 0:01:46.3]} 24...
Qf6 {[%clk 0:02:00.5]} 25. b4 {[%clk 0:01:43]} 25... Rd6 {[%clk 0:01:56.8]} 26.
Rc7 {[%clk 0:01:40.1]} 26... Re6 {[%clk 0:01:56.3]} 27. Qc5 {[%clk 0:01:34.8]}
27... Re5 {[%clk 0:01:47.4]} 28. Rc8+ {[%clk 0:01:26.3]} 28... Rxc8 {[%clk
0:01:47.1]} 29. Qxc8+ {[%clk 0:01:25.7]} 29... Kg7 {[%clk 0:01:47.1]} 30. Qxb7
{[%clk 0:01:25]} 30... Re2 {[%clk 0:01:39.2]} 31. Qa7 {[%clk 0:01:17.4]} 31...
h5 {[%clk 0:01:28.3]} 32. Rf1 {[%clk 0:01:12.9]} 32... Rb2 {[%clk 0:01:24.4]}
33. Qb7 {[%clk 0:01:07.5]} 33... Qd6 {[%clk 0:01:19.2]} 34. b5 {[%clk 0:01:06]}
34... axb5 {[%clk 0:01:18.9]} 35. axb5 {[%clk 0:01:05.6]} 35... Qc5 {[%clk
0:01:17.4]} 36. Qc6 {[%clk 0:00:48.7]} 36... Qxc6 {[%clk 0:01:08]} 37. bxc6
{[%clk 0:00:48.3]} 37... Rc2 {[%clk 0:01:08.2]} 38. Re1 {[%clk 0:00:47.6]} 38...
e6 {[%clk 0:01:06.1]} 39. Kg2 {[%clk 0:00:47.4]} 39... Rxc6 {[%clk 0:01:05.8]}
40. h4 {[%clk 0:00:47.1]} 40... f5 {[%clk 0:01:05]} 41. Re2 {[%clk 0:00:46.2]}
41... Kf6 {[%clk 0:01:05.2]} 42. f4 {[%clk 0:00:44.5]} 42... Rc3 {[%clk
0:01:04.1]} 43. Kf2 {[%clk 0:00:44.3]} 43... Rc4 {[%clk 0:01:01.1]} 44. Kf3
{[%clk 0:00:44.2]} 44... Rc3+ {[%clk 0:01:00.4]} 45. Kf2 {[%clk 0:00:44.3]}
45... Rd3 {[%clk 0:01:00.7]} 46. Re1 {[%clk 0:00:42.6]} 46... Ra3 {[%clk
0:00:58.2]} 47. Re2 {[%clk 0:00:42.5]} 47... Ra5 {[%clk 0:00:56.8]} 48. Kf3
{[%clk 0:00:42]} 48... e5 {[%clk 0:00:57.1]} 49. fxe5+ {[%clk 0:00:41.9]} 49...
Rxe5 {[%clk 0:00:56.5]} 50. Ra2 {[%clk 0:00:41.1]} 50... Re6 {[%clk 0:00:53.4]}
51. Ra5 {[%clk 0:00:39.2]} 51... Re4 {[%clk 0:00:50.8]} 52. Ra6+ {[%clk
0:00:38.3]} 52... Re6 {[%clk 0:00:50.8]} 53. Ra5 {[%clk 0:00:38.1]} 53... Rd6
{[%clk 0:00:49.7]} 54. Ra3 {[%clk 0:00:35.3]} 54... g5 {[%clk 0:00:48.2]} 55.
hxg5+ {[%clk 0:00:34.6]} 55... Kxg5 {[%clk 0:00:48.4]} 56. Rb3 {[%clk
0:00:33.8]} 56... Rd1 {[%clk 0:00:46.7]} 57. Rb4 {[%clk 0:00:30.8]} 57... Rf1+
{[%clk 0:00:46.2]} 58. Kg2 {[%clk 0:00:30.7]} 58... Re1 {[%clk 0:00:45.8]} 59.
Kf2 {[%clk 0:00:30.8]} 59... Re4 {[%clk 0:00:45.5]} 60. Rb8 {[%clk 0:00:30.1]}
60... h4 {[%clk 0:00:39.7]} 61. Rg8+ {[%clk 0:00:26.8]} 61... Kh5 {[%clk
0:00:39.6]} 62. Rh8+ {[%clk 0:00:26]} 62... Kg5 {[%clk 0:00:38.2]} 63. gxh4+
{[%clk 0:00:24.3]} 63... Rxh4 {[%clk 0:00:37.7]} 64. Rxh4 {[%clk 0:00:23]} 64...
Kxh4 {[%clk 0:00:37.8]} 65. Kf3 {[%clk 0:00:23.4]} 65... Kg5 {[%clk 0:00:38.2]}
66. Kg3 {[%clk 0:00:23.8]} 66... Kf6 {[%clk 0:00:37.9]} 67. Kf4 {[%clk
0:00:23.9]} 67... Ke6 {[%clk 0:00:37.9]} 68. Kf3 {[%clk 0:00:24]} 68... Ke5
{[%clk 0:00:38.2]} 69. Ke3 {[%clk 0:00:24.3]} 69... Kf6 {[%clk 0:00:38.6]} 70.
Kf4 {[%clk 0:00:24.5]} 70... Kg6 {[%clk 0:00:38.4]} 71. Kf3 {[%clk 0:00:24.6]}
71... Kg5 {[%clk 0:00:38.7]} 72. Kg3 {[%clk 0:00:25]} 72... f4+ {[%clk
0:00:39.6]} 73. Kf3 {[%clk 0:00:25.3]} 73... Kf5 {[%clk 0:00:39.9]} 74. Kf2
{[%clk 0:00:25.7]} 74... Ke5 {[%clk 0:00:39.6]} 75. Kf3 {[%clk 0:00:25.9]} 75...
Kf5 {[%clk 0:00:40.1]} 76. Kf2 {[%clk 0:00:26.3]} 76... Ke4 {[%clk 0:00:40.5]}
77. Ke2 {[%clk 0:00:26.6]} 77... f3+ {[%clk 0:00:41]} 78. Kf2 {[%clk 0:00:27]}
78... Kf4 {[%clk 0:00:41.4]} 79. Kf1 {[%clk 0:00:27.3]} 79... Kg4 {[%clk
0:00:39.8]} 80. Kf2 {[%clk 0:00:27.4]} 80... Kf4 {[%clk 0:00:40.1]} 81. Kf1
{[%clk 0:00:27.8]} 81... Ke5 {[%clk 0:00:40.3]} 82. Kf2 {[%clk 0:00:28]} 82...
Ke4 {[%clk 0:00:40.6]} 83. Kf1 {[%clk 0:00:28]} 83... Kd3 {[%clk 0:00:40.1]} 84.
Kf2 {[%clk 0:00:28.2]} 84... Ke4 {[%clk 0:00:40.3]} 85. Kf1 {[%clk 0:00:28.4]}
85... Kf4 {[%clk 0:00:40.7]} 86. Kf2 {[%clk 0:00:28.7]} 86... Kg4 {[%clk
0:00:41.1]} 87. Kf1 {[%clk 0:00:29]} 87... Kg3 {[%clk 0:00:41.5]} 88. Kg1 {[%clk
0:00:29.1]} 88... Kh3 {[%clk 0:00:41.5]} 89. Kf2 {[%clk 0:00:29.1]} 89... Kg4
{[%clk 0:00:41.8]} 90. Kf1 {[%clk 0:00:29.3]} 90... Kg3 {[%clk 0:00:42]} 91. Kg1
{[%clk 0:00:29.4]} 91... Kf4 {[%clk 0:00:42.3]} 92. Kf2 {[%clk 0:00:29.6]} 92...
Ke4 {[%clk 0:00:42.5]} 1/2-1/2

[Event "*** Titled Tuesday Blitz"]
[Site "Chess.com"]
[Date "2020.05.26"]
[Round "6"]
[White "Mikasinski"]
[Black "Semetey"]
[Result "1-0"]
[WhiteElo "2399"]
[BlackElo "2531"]
[TimeControl "180+1"]
[EndTime "11:09:17 PDT"]
[Termination "Mikasinski won by resignation"]

1. e4 {[%clk 0:03:00.9]} 1... c5 {[%clk 0:02:40.9]} 2. Nf3 {[%clk 0:03:00.8]}
2... d6 {[%clk 0:02:39.2]} 3. d4 {[%clk 0:03:01.1]} 3... cxd4 {[%clk 0:02:37.2]}
4. Nxd4 {[%clk 0:03:02]} 4... Nf6 {[%clk 0:02:36.6]} 5. Nc3 {[%clk 0:03:02.5]}
5... a6 {[%clk 0:02:36.3]} 6. Be2 {[%clk 0:03:02.5]} 6... e5 {[%clk 0:02:36]} 7.
Nf3 {[%clk 0:03:02.5]} 7... Be7 {[%clk 0:02:34.6]} 8. Bg5 {[%clk 0:03:01.7]}
8... O-O {[%clk 0:02:34.1]} 9. Bxf6 {[%clk 0:03:00.9]} 9... Bxf6 {[%clk
0:02:33.9]} 10. Bc4 {[%clk 0:03:01.4]} 10... Be6 {[%clk 0:02:33.4]} 11. Bb3
{[%clk 0:03:01.4]} 11... Be7 {[%clk 0:02:29.4]} 12. O-O {[%clk 0:03:00.5]} 12...
Nd7 {[%clk 0:02:29]} 13. Re1 {[%clk 0:02:55]} 13... h6 {[%clk 0:02:28.3]} 14.
Nd2 {[%clk 0:02:52.7]} 14... Rc8 {[%clk 0:02:16.3]} 15. a4 {[%clk 0:02:49]}
15... Nc5 {[%clk 0:02:11.5]} 16. Bd5 {[%clk 0:02:48.7]} 16... Kh8 {[%clk
0:02:04.3]} 17. Nc4 {[%clk 0:02:40.2]} 17... Qc7 {[%clk 0:01:06.5]} 18. b3
{[%clk 0:02:16.7]} 18... Nd7 {[%clk 0:00:49.8]} 19. Qd3 {[%clk 0:01:59.2]} 19...
Nf6 {[%clk 0:00:42.4]} 20. Rad1 {[%clk 0:01:47.8]} 20... Rfd8 {[%clk 0:00:42.1]}
21. h3 {[%clk 0:01:35]} 21... Nh5 {[%clk 0:00:41.3]} 22. Ne2 {[%clk 0:01:31.1]}
22... b5 {[%clk 0:00:38.9]} 23. axb5 {[%clk 0:01:27.2]} 23... axb5 {[%clk
0:00:39.8]} 24. Ne3 {[%clk 0:01:27]} 24... Nf4 {[%clk 0:00:36.1]} 25. Nxf4
{[%clk 0:01:21.9]} 25... exf4 {[%clk 0:00:37]} 26. Nf5 {[%clk 0:01:22.1]} 26...
Bf6 {[%clk 0:00:33.9]} 27. c4 {[%clk 0:01:19.4]} 27... bxc4 {[%clk 0:00:33.4]}
28. bxc4 {[%clk 0:01:19.3]} 28... Be5 {[%clk 0:00:32.9]} 29. Rb1 {[%clk
0:01:13.1]} 29... Rb8 {[%clk 0:00:32.1]} 30. Rbc1 {[%clk 0:00:57.7]} 30... Rb2
{[%clk 0:00:30.2]} 31. Nd4 {[%clk 0:00:52.6]} 31... Qc5 {[%clk 0:00:29.1]} 32.
Ne2 {[%clk 0:00:41.7]} 32... Rdb8 {[%clk 0:00:28]} 33. Rb1 {[%clk 0:00:38.5]}
33... Qa5 {[%clk 0:00:19.8]} 34. Red1 {[%clk 0:00:21.6]} 34... R8b3 {[%clk
0:00:17]} 35. Qxb3 {[%clk 0:00:20.9]} 35... Rxb3 {[%clk 0:00:15.7]} 36. Rxb3
{[%clk 0:00:21.8]} 36... Qa2 {[%clk 0:00:15.8]} 37. Nc1 {[%clk 0:00:19.3]} 37...
Qc2 {[%clk 0:00:14.8]} 38. Rbd3 {[%clk 0:00:19.2]} 38... f3 {[%clk 0:00:13.8]}
39. R3d2 {[%clk 0:00:14.3]} 39... Qc3 {[%clk 0:00:12.8]} 40. Rd3 {[%clk
0:00:14.1]} 40... Qc2 {[%clk 0:00:12.8]} 41. R3d2 {[%clk 0:00:14.2]} 41... Qa4
{[%clk 0:00:12.3]} 42. g3 {[%clk 0:00:09.2]} 42... Bxh3 {[%clk 0:00:11.5]} 43.
Bxf7 {[%clk 0:00:07.8]} 43... Qd7 {[%clk 0:00:10.5]} 44. Bh5 {[%clk 0:00:03.3]}
44... Bg4 {[%clk 0:00:10.6]} 45. Bxg4 {[%clk 0:00:02.1]} 45... Qxg4 {[%clk
0:00:11.5]} 46. Nd3 {[%clk 0:00:02.1]} 46... Qh3 {[%clk 0:00:10.3]} 47. Ne1
{[%clk 0:00:02.3]} 47... Bxg3 {[%clk 0:00:09.9]} 48. fxg3 {[%clk 0:00:01.3]}
48... Qxg3+ {[%clk 0:00:10.8]} 49. Kf1 {[%clk 0:00:01.7]} 49... Qh3+ {[%clk
0:00:11.1]} 50. Kf2 {[%clk 0:00:02.2]} 50... h5 {[%clk 0:00:08]} 51. Nxf3 {[%clk
0:00:02.7]} 51... h4 {[%clk 0:00:07.6]} 52. Rg1 {[%clk 0:00:03.6]} 52... Qe6
{[%clk 0:00:05.6]} 53. Rd5 {[%clk 0:00:03.5]} 53... Qxe4 {[%clk 0:00:05.6]} 54.
Rh5+ {[%clk 0:00:03.6]} 54... Kg8 {[%clk 0:00:05.5]} 55. Rxh4 {[%clk 0:00:04.5]}
55... Qc2+ {[%clk 0:00:05.8]} 56. Kg3 {[%clk 0:00:05.1]} 56... Qe2 {[%clk
0:00:05.5]} 57. Rg2 {[%clk 0:00:04.9]} 57... Qe6 {[%clk 0:00:04.9]} 58. Rg4
{[%clk 0:00:04.6]} 58... Kf8 {[%clk 0:00:04.6]} 59. Kh3 {[%clk 0:00:04.7]} 59...
Qh6+ {[%clk 0:00:04.7]} 60. Kg3 {[%clk 0:00:04.7]} 60... Qe6 {[%clk 0:00:04.7]}
61. Nh4 {[%clk 0:00:04]} 61... Qe3+ {[%clk 0:00:04.5]} 62. Kh2 {[%clk
0:00:03.6]} 62... Qe5+ {[%clk 0:00:05]} 63. R2g3 {[%clk 0:00:03.6]} 63... Qe2+
{[%clk 0:00:05.1]} 64. Kh3 {[%clk 0:00:02.9]} 64... Qf1+ {[%clk 0:00:05.5]} 65.
Rg2 {[%clk 0:00:03.1]} 65... Qd3+ {[%clk 0:00:05.7]} 66. R4g3 {[%clk 0:00:02.5]}
66... g5 {[%clk 0:00:05.6]} 67. Rf3+ {[%clk 0:00:03]} 67... Ke7 {[%clk 0:00:05]}
68. Rxd3 {[%clk 0:00:03]} 1-0

[Event "*** Titled Tuesday Blitz"]
[Site "Chess.com"]
[Date "2020.05.26"]
[Round "6"]
[White "PavelShkapenko"]
[Black "Tenamu"]
[Result "0-1"]
[WhiteElo "2642"]
[BlackElo "2371"]
[TimeControl "180+1"]
[EndTime "11:09:17 PDT"]
[Termination "Tenamu won by resignation"]

1. e4 {[%clk 0:03:00.9]} 1... e6 {[%clk 0:02:55.9]} 2. d4 {[%clk 0:03:00.7]}
2... d5 {[%clk 0:02:56.1]} 3. exd5 {[%clk 0:03:01.1]} 3... exd5 {[%clk
0:02:55.9]} 4. Nf3 {[%clk 0:03:01.7]} 4... Bd6 {[%clk 0:02:55.7]} 5. c4 {[%clk
0:03:01.8]} 5... c6 {[%clk 0:02:52.9]} 6. Nc3 {[%clk 0:03:01.2]} 6... Bg4 {[%clk
0:02:39.1]} 7. Bd3 {[%clk 0:02:45.8]} 7... dxc4 {[%clk 0:02:35.3]} 8. Bxc4
{[%clk 0:02:45.8]} 8... Nf6 {[%clk 0:02:35.1]} 9. O-O {[%clk 0:02:45.6]} 9...
O-O {[%clk 0:02:35.1]} 10. h3 {[%clk 0:02:46]} 10... Bh5 {[%clk 0:02:34.3]} 11.
g4 {[%clk 0:02:46.2]} 11... Bg6 {[%clk 0:02:33.8]} 12. Ne5 {[%clk 0:02:46.7]}
12... Nbd7 {[%clk 0:02:28.6]} 13. f4 {[%clk 0:02:45.6]} 13... b5 {[%clk
0:02:07.9]} 14. Bb3 {[%clk 0:02:45.1]} 14... b4 {[%clk 0:02:07.7]} 15. Ne2
{[%clk 0:02:28.6]} 15... Be4 {[%clk 0:02:07]} 16. Ng3 {[%clk 0:02:28.6]} 16...
Bd5 {[%clk 0:02:05.8]} 17. Nf5 {[%clk 0:02:28.6]} 17... Nb6 {[%clk 0:01:56.8]}
18. Nxd6 {[%clk 0:02:25.2]} 18... Qxd6 {[%clk 0:01:56]} 19. f5 {[%clk
0:02:08.1]} 19... Rad8 {[%clk 0:01:49.8]} 20. Bf4 {[%clk 0:02:07.4]} 20... Bxb3
{[%clk 0:01:45.6]} 21. axb3 {[%clk 0:02:07.9]} 21... Qd5 {[%clk 0:01:42.4]} 22.
Rxa7 {[%clk 0:01:55.5]} 22... c5 {[%clk 0:01:40.4]} 23. Ra5 {[%clk 0:01:27.6]}
23... Ne4 {[%clk 0:01:32.3]} 24. Nf3 {[%clk 0:01:17.7]} 24... Ra8 {[%clk
0:01:19.5]} 25. Rxa8 {[%clk 0:01:07.1]} 25... Rxa8 {[%clk 0:01:18.2]} 26. dxc5
{[%clk 0:01:05.9]} 26... Qxc5+ {[%clk 0:01:12.2]} 27. Qd4 {[%clk 0:01:05.6]}
27... Nd5 {[%clk 0:01:03.1]} 28. Be5 {[%clk 0:00:46.3]} 28... f6 {[%clk
0:00:59.5]} 29. Qxc5 {[%clk 0:00:41.6]} 29... Nxc5 {[%clk 0:00:58.9]} 30. Bd6
{[%clk 0:00:42.1]} 30... Nxb3 {[%clk 0:00:55.5]} 31. Rd1 {[%clk 0:00:42.2]}
31... Ra1 {[%clk 0:00:43.5]} 32. Rxa1 {[%clk 0:00:41.2]} 32... Nxa1 {[%clk
0:00:43.6]} 33. Nd4 {[%clk 0:00:39]} 33... b3 {[%clk 0:00:40.8]} 34. Kf2 {[%clk
0:00:36.9]} 34... Nb6 {[%clk 0:00:39.4]} 35. Bb4 {[%clk 0:00:29.7]} 35... Na4
{[%clk 0:00:20.1]} 36. Ke2 {[%clk 0:00:29.6]} 36... Kf7 {[%clk 0:00:20.6]} 37.
Kd2 {[%clk 0:00:29.3]} 37... Nxb2 {[%clk 0:00:20.7]} 38. Bc3 {[%clk 0:00:29.3]}
38... Nc4+ {[%clk 0:00:20.2]} 39. Kd3 {[%clk 0:00:28.6]} 39... b2 {[%clk
0:00:20.1]} 40. Bxb2 {[%clk 0:00:27.9]} 40... Nxb2+ {[%clk 0:00:21]} 41. Kc3
{[%clk 0:00:28.4]} 41... Nd1+ {[%clk 0:00:20.9]} 42. Kd2 {[%clk 0:00:28.2]}
42... Nf2 {[%clk 0:00:20.8]} 43. Kc3 {[%clk 0:00:26.8]} 43... Nxh3 {[%clk
0:00:19.8]} 44. Kb2 {[%clk 0:00:27.4]} 44... Nf2 {[%clk 0:00:20.4]} 45. Nb5
{[%clk 0:00:24.2]} 45... Nxg4 {[%clk 0:00:20.7]} 46. Nd6+ {[%clk 0:00:24.4]}
46... Ke7 {[%clk 0:00:20.5]} 47. Nc8+ {[%clk 0:00:24.2]} 47... Kd7 {[%clk
0:00:20.7]} 48. Nb6+ {[%clk 0:00:24.3]} 48... Kc6 {[%clk 0:00:20.9]} 49. Na4
{[%clk 0:00:22.4]} 49... Ne3 {[%clk 0:00:21]} 50. Kxa1 {[%clk 0:00:22.3]} 50...
Nxf5 {[%clk 0:00:20.8]} 51. Kb2 {[%clk 0:00:22.8]} 51... g5 {[%clk 0:00:21]} 52.
Nc3 {[%clk 0:00:20.9]} 52... Kc5 {[%clk 0:00:20.5]} 53. Ne4+ {[%clk 0:00:20.6]}
53... Kd4 {[%clk 0:00:20.5]} 54. Nxf6 {[%clk 0:00:21.1]} 54... h6 {[%clk
0:00:20.2]} 55. Kc2 {[%clk 0:00:20.8]} 55... Ke3 {[%clk 0:00:19.7]} 56. Kd1
{[%clk 0:00:20.1]} 56... Kf3 {[%clk 0:00:18.8]} 57. Ke1 {[%clk 0:00:20.1]} 57...
Ne3 {[%clk 0:00:19]} 58. Nd7 {[%clk 0:00:18.6]} 58... g4 {[%clk 0:00:19]} 59.
Ne5+ {[%clk 0:00:19.1]} 59... Kf4 {[%clk 0:00:19.4]} 60. Ng6+ {[%clk 0:00:19.2]}
60... Kg5 {[%clk 0:00:19]} 61. Ne5 {[%clk 0:00:19.4]} 61... h5 {[%clk
0:00:19.3]} 62. Ke2 {[%clk 0:00:19.6]} 62... Kf4 {[%clk 0:00:19.1]} 63. Nd3+
{[%clk 0:00:19.2]} 63... Ke4 {[%clk 0:00:19.4]} 64. Nc5+ {[%clk 0:00:18.6]}
64... Kd4 {[%clk 0:00:19.1]} 65. Ne6+ {[%clk 0:00:18.5]} 65... Ke4 {[%clk
0:00:19.4]} 66. Nc5+ {[%clk 0:00:18.2]} 66... Kd4 {[%clk 0:00:19.3]} 67. Ne6+
{[%clk 0:00:18.4]} 67... Ke5 {[%clk 0:00:19.6]} 68. Ng7 {[%clk 0:00:18.9]} 68...
Nf5 {[%clk 0:00:17.8]} 69. Nxh5 {[%clk 0:00:18.7]} 69... Ke4 {[%clk 0:00:18.2]}
70. Kf1 {[%clk 0:00:18.4]} 70... Kf3 {[%clk 0:00:17.3]} 71. Kg1 {[%clk
0:00:17.8]} 71... Ng3 {[%clk 0:00:17.5]} 72. Nf6 {[%clk 0:00:17.3]} 72... Ne2+
{[%clk 0:00:18.1]} 73. Kh2 {[%clk 0:00:12.7]} 73... g3+ {[%clk 0:00:19]} 74. Kh3
{[%clk 0:00:12.3]} 74... g2 {[%clk 0:00:19.3]} 75. Ne4 {[%clk 0:00:10.6]} 75...
g1=Q {[%clk 0:00:18.8]} 76. Nd2+ {[%clk 0:00:10.6]} 76... Kf4 {[%clk 0:00:17.4]}
0-1